bitfinex/quotes_SOLUSD_20250829
["timestamp","ask_amount","ask_price","bid_price","bid_amount"]
[1756453825976,29.33232165,209.77,209.71,29.99232165]
[1756453826270,29.33232165,209.77,209.72,0.66]
[1756453826466,0.06,209.78,209.72,0.66]
[1756453826893,0.06,209.78,209.73,4.76803509]
[1756453827095,29.39232165,209.78,209.74,0.66]
[1756453827288,29.39232165,209.78,209.73,4.76803509]
[1756453827492,29.33232165,209.74,209.58,23.85723828]
[1756453827675,42.92791566,209.75,209.7,0.66]
[1756453827870,0.06,209.78,209.65,29.33232165]
[1756453828174,0.06,209.78,209.62,39.59559401]
[1756453828175,29.33232165,209.74,209.71,0.66]
[1756453828588,29.33232165,209.73,209.68,40.76]
[1756453828767,29.33232165,209.73,209.69,0.66]
[1756453828968,29.33232165,209.72,209.69,0.66]
[1756453829789,29.33232165,209.73,209.69,0.66]
[1756453829995,13.59559401,209.74,209.69,0.66]
[1756453830186,29.33232165,209.72,209.69,0.66]
[1756453831497,29.33232165,209.71,209.67,44.86917927]
[1756453831702,29.33232165,209.7,209.68,0.71]
[1756453831876,29.33232165,209.7,209.67,40.02]
[1756453832078,29.33232165,209.7,209.67,40.73]
[1756453832389,29.33232165,209.7,209.67,40.02]
[1756453832704,18.36340247,209.74,209.67,40.02]
[1756453832705,13.59559401,209.74,209.68,0.71]
[1756453832880,29.33232165,209.7,209.65,5.47984659]
[1756453833071,29.33232165,209.7,209.66,40.71]
[1756453833272,29.33232165,209.69,209.66,0.71]
[1756453833467,29.33232165,209.67,209.62,0.71]
[1756453833703,29.33232165,209.64,209.59,0.71]
[1756453834001,29.33232165,209.62,209.59,0.71]
[1756453834323,29.33232165,209.63,209.6,0.71]
[1756453834818,29.33232165,209.62,209.58,39.96]
[1756453835121,29.33232165,209.62,209.58,40.67]
[1756453835313,29.33232165,209.61,209.58,40.67]
[1756453835510,13.59559401,209.64,209.58,40.69]
[1756453835690,13.59559401,209.69,209.62,29.33232165]
[1756453835900,42.92791566,209.69,209.58,44.75141301]
[1756453836094,29.33232165,209.67,209.63,0.71]
[1756453836497,29.33232165,209.67,209.61,29.33232165]
[1756453836498,29.33232165,209.67,209.64,0.71]
[1756453836690,13.59559401,209.64,209.58,0.71]
[1756453836892,29.33232165,209.63,209.58,0.71]
[1756453837092,29.33232165,209.62,209.58,0.71]
[1756453837493,29.33232165,209.62,209.58,5.48143958]
[1756453837811,29.33232165,209.59,209.58,0.71]
[1756453838108,29.33232165,209.61,209.58,5.4814193]
[1756453838415,29.33232165,209.61,209.59,0.71]
[1756453838617,29.33232165,209.6,209.59,0.71]
[1756453839514,29.33232165,209.6,209.58,4.7714193]
[1756453839812,29.33232165,209.6,209.58,0.71]
[1756453840114,13.59559401,209.65,209.58,0.71]
[1756453840314,29.33232165,209.62,209.58,0.71]
[1756453840491,29.33232165,209.62,209.55,29.36232165]
[1756453840687,13.59559401,209.66,209.59,0.71]
[1756453841012,29.33232165,209.65,209.59,70.04232165]
[1756453841315,0.06,209.72,209.62,29.33232165]
[1756453841497,29.33232165,209.68,209.62,29.33232165]
[1756453841698,29.33232165,209.68,209.63,0.71]
[1756453841895,29.33232165,209.68,209.64,4.77008204]
[1756453842197,29.33232165,209.69,209.65,0.71]
[1756453842393,29.33232165,209.69,209.64,4.77008204]
[1756453842599,29.33232165,209.71,209.66,0.71]
[1756453843512,29.33232165,209.68,209.65,40.0]
[1756453844209,13.59559401,209.69,209.65,44.76984717]
[1756453844409,13.59559401,209.69,209.65,45.47984717]
[1756453845916,19.14151045,209.67,209.65,40.0]
[1756453846223,19.14151045,209.66,209.61,39.9]
[1756453846430,19.14151045,209.65,209.61,40.61]
[1756453846621,0.41,209.69,209.61,40.61]
[1756453846622,19.14151045,209.66,209.61,40.61]
[1756453847520,19.14151045,209.7,209.63,19.14151045]
[1756453847823,0.06,209.72,209.65,19.14151045]
[1756453848012,19.14151045,209.7,209.66,39.88]
[1756453848317,19.14151045,209.7,209.66,40.59]
[1756453848911,19.14151045,209.7,209.67,0.71]
[1756453849609,19.14151045,209.7,209.67,4.76919962]
[1756453849813,19.14151045,209.7,209.67,5.47919962]
[1756453850125,0.06,209.72,209.67,5.47919962]
[1756453850427,19.14151045,209.71,209.67,5.47919962]
[1756453850612,13.59559401,209.67,209.6,0.71]
[1756453850818,19.14151045,209.65,209.61,0.71]
[1756453851017,19.14151045,209.65,209.62,0.71]
[1756453851521,19.14151045,209.65,209.59,84.94151045]
[1756453851724,19.14151045,209.6,209.58,26.0]
[1756453851927,19.14151045,209.6,209.58,26.71]
[1756453852634,19.14151045,209.6,209.59,4.77122]
[1756453853057,19.14151045,209.6,209.59,5.48122]
[1756453853324,13.59559401,209.67,209.59,5.48122]
[1756453853624,19.14151045,209.64,209.6,0.71]
[1756453853934,13.59559401,209.68,209.61,39.88]
[1756453854226,3.19414383,209.67,209.61,39.88]
[1756453854408,19.14151045,209.63,209.61,39.88]
[1756453854610,13.59559401,209.67,209.62,5.48032569]
[1756453854806,0.06,209.69,209.63,0.71]
[1756453855006,19.14151045,209.65,209.62,4.77032569]
[1756453855212,19.14151045,209.65,209.62,5.48032569]
[1756453855411,19.14151045,209.64,209.62,5.48032569]
[1756453855809,0.06,209.69,209.62,5.48032569]
[1756453856022,19.14151045,209.64,209.62,5.48032569]
[1756453856940,19.14151045,209.65,209.63,0.71]
[1756453857244,19.14151045,209.65,209.62,4.77032569]
[1756453857245,0.06,209.69,209.64,19.85151045]
[1756453857539,19.20151045,209.69,209.65,39.84]
[1756453857725,19.14151045,209.67,209.65,39.84]
[1756453857930,0.06,209.69,209.65,40.55]
[1756453857931,19.14151045,209.68,209.65,40.55]
[1756453858732,0.06,209.69,209.65,39.84]
[1756453859046,0.06,209.69,209.66,0.71]
[1756453859213,0.06,209.69,209.65,44.60970518]
[1756453859214,0.06,209.69,209.67,0.71]
[1756453859407,19.20151045,209.69,209.67,0.71]
[1756453859608,19.20151045,209.69,209.65,44.60970518]
[1756453859804,0.06,209.69,209.65,44.60970518]
[1756453860105,19.14151045,209.68,209.66,0.71]
[1756453860324,0.06,209.69,209.67,19.85151045]
[1756453860709,0.06,209.69,209.68,0.7]
[1756453860911,0.06,209.69,209.68,5.46917207]
[1756453861221,0.06,209.72,209.71,26.0]
[1756453861425,0.06,209.74,209.71,84.98151045]
[1756453861733,0.06,209.75,209.74,19.14151045]
[1756453861913,0.06,209.75,209.74,59.00151045]
[1756453862114,0.06,209.75,209.74,59.70151045]
[1756453862509,0.06,209.75,209.74,40.56]
[1756453862713,0.06,209.75,209.74,59.70151045]
[1756453862917,0.06,209.75,209.74,64.46931821]
[1756453863122,0.06,209.75,209.74,90.46931821]
[1756453863641,0.06,209.75,209.74,71.32780776]
[1756453863818,19.20151045,209.75,209.74,39.8]
[1756453864513,0.06,209.75,209.74,39.8]
[1756453864720,0.06,209.75,209.74,40.5]
[1756453864916,0.06,209.75,209.74,64.40931821]
[1756453866125,0.06,209.75,209.74,45.26780776]
[1756453866326,0.06,209.75,209.74,64.40931821]
[1756453867335,0.06,209.75,209.74,5.46780776]
[1756453867510,0.06,209.75,209.74,31.46780776]
[1756453867711,0.06,209.75,209.74,39.76]
[1756453867939,19.20151045,209.75,209.72,4.76807588]
[1756453868142,0.06,209.75,209.74,39.76]
[1756453869118,19.67151045,209.75,209.72,39.78]
[1756453869319,19.14151045,209.73,209.72,39.78]
[1756453870937,0.53,209.75,209.72,39.78]
[1756453871144,19.14151045,209.73,209.72,39.78]
[1756453871449,19.14151045,209.73,209.7,4.76871273]
[1756453871618,0.06,209.75,209.72,39.74]
[1756453872546,0.47,209.74,209.67,0.03]
[1756453872720,19.14151045,209.68,209.67,0.03]
[1756453873046,33.20710446,209.68,209.67,0.03]
[1756453873230,33.20710446,209.68,209.64,0.03]
[1756453873231,32.73710446,209.65,209.64,0.03]
[1756453875441,26.0,209.7,209.64,0.03]
[1756453875643,13.59559401,209.69,209.64,0.73]
[1756453875852,19.14151045,209.67,209.64,0.73]
[1756453876028,19.14151045,209.68,209.65,0.7]
[1756453876230,19.14151045,209.69,209.66,0.7]
[1756453876630,13.59559401,209.71,209.64,0.03]
[1756453876831,19.14151045,209.67,209.64,0.73]
[1756453877038,19.14151045,209.69,209.65,0.7]
[1756453877557,19.14151045,209.68,209.65,0.7]
[1756453878329,19.14151045,209.66,209.64,0.03]
[1756453878531,19.14151045,209.68,209.64,0.03]
[1756453878743,19.14151045,209.69,209.65,0.7]
[1756453879052,13.59559401,209.71,209.65,5.4697275]
[1756453879346,19.14151045,209.68,209.65,5.4697275]
[1756453879839,19.14151045,209.67,209.65,0.7]
[1756453880035,19.14151045,209.67,209.64,0.03]
[1756453880642,26.0,209.74,209.64,0.03]
[1756453880643,19.14151045,209.73,209.66,19.14151045]
[1756453880846,19.14151045,209.74,209.68,19.14151045]
[1756453881051,19.20151045,209.75,209.69,24.61045508]
[1756453881257,19.20151045,209.75,209.73,19.14151045]
[1756453881258,0.06,209.75,209.73,19.14151045]
[1756453881448,0.06,209.75,209.74,19.84151045]
[1756453882732,1e-08,209.75,209.74,19.84151045]
[1756453882937,1e-08,209.75,209.74,50.60931821]
[1756453883635,1e-08,209.75,209.74,24.60931821]
[1756453883833,1e-08,209.75,209.74,64.30931821]
[1756453884042,1e-08,209.75,209.74,45.16780776]
[1756453884246,1e-08,209.75,209.74,90.30931821]
[1756453884437,1e-08,209.78,209.77,45.14151045]
[1756453884850,1e-08,209.78,209.77,45.84151045]
[1756453885034,1e-08,209.78,209.77,50.60863634]
[1756453885558,1e-08,209.78,209.77,5.46712589]
[1756453885855,1e-08,209.78,209.77,71.12712589]
[1756453886059,1e-08,209.78,209.77,70.42712589]
[1756453886353,1e-08,209.78,209.77,44.42712589]
[1756453886743,1e-08,209.78,209.77,64.26863634]
[1756453889061,1e-08,209.78,209.77,45.12712589]
[1756453889257,1e-08,209.78,209.77,64.26863634]
[1756453890643,1e-08,209.78,209.74,11.9195194]
[1756453890644,19.14151046,209.78,209.74,26.0]
[1756453890978,19.14151046,209.78,209.75,39.58]
[1756453891347,1e-08,209.78,209.73,23.90954554]
[1756453891542,1e-08,209.78,209.74,39.6]
[1756453891858,1e-08,209.78,209.73,24.62954554]
[1756453891859,1e-08,209.78,209.75,39.58]
[1756453892546,1e-08,209.78,209.76,4.76735316]
[1756453893147,1e-08,209.78,209.76,5.48735316]
[1756453893965,1e-08,209.78,209.76,24.62886361]
[1756453894164,1e-08,209.78,209.77,19.86151045]
[1756453894344,1e-08,209.78,209.77,45.86151045]
[1756453895672,1e-08,209.78,209.77,31.48712589]
[1756453896373,1e-08,209.78,209.77,71.02712589]
[1756453896865,1e-08,209.78,209.77,31.48712589]
[1756453897072,1e-08,209.78,209.77,71.02712589]
[1756453898548,1e-08,209.78,209.77,45.02712589]
[1756453899872,1e-08,209.81,209.8,26.0]
[1756453900067,1e-08,209.81,209.8,84.68151045]
[1756453900469,1e-08,209.81,209.8,85.40151045]
[1756453901171,1e-08,209.81,209.8,90.16795468]
[1756453901349,1e-08,209.83,209.8,90.16795468]
[1756453901545,1e-08,209.83,209.82,19.14151045]
[1756453901768,1e-08,209.83,209.82,58.68151045]
[1756453902051,1e-08,209.83,209.82,59.40151045]
[1756453902258,0.1,209.93,209.85,26.0]
[1756453902459,0.1,209.93,209.89,19.14151045]
[1756453902661,0.1,209.93,209.87,19.14151045]
[1756453902868,19.14151045,209.91,209.84,45.14151045]
[1756453903186,0.44,209.92,209.85,58.68151045]
[1756453903360,19.58151045,209.92,209.86,4.76508148]
[1756453903555,13.69559401,209.93,209.87,58.68151045]
[1756453903753,32.83710446,209.93,209.87,39.54]
[1756453903982,32.83710446,209.93,209.87,58.68151045]
[1756453904277,32.83710446,209.93,209.87,19.14151045]
[1756453904478,32.83710446,209.93,209.88,39.54]
[1756453904680,33.27710446,209.93,209.89,39.54]
[1756453905178,33.27710446,209.93,209.9,39.54]
[1756453905179,0.44,209.92,209.9,39.54]
[1756453905476,13.59559401,209.9,209.82,19.14151045]
[1756453905673,19.14151045,209.87,209.8,19.14151045]
[1756453905868,0.44,209.89,209.77,5.48712589]
[1756453905869,19.14151045,209.85,209.77,5.48712589]
[1756453906078,19.14151045,209.85,209.79,19.14151045]
[1756453906274,19.58151045,209.86,209.8,39.54]
[1756453906576,19.14151045,209.83,209.81,39.54]
[1756453906774,19.14151045,209.83,209.82,39.54]
[1756453907175,19.14151045,209.84,209.82,39.54]
[1756453907495,0.44,209.83,209.82,39.54]
[1756453907784,13.59559401,209.82,209.75,0.03]
[1756453907965,19.14151045,209.76,209.75,0.03]
[1756453908370,13.59559401,209.8,209.75,0.03]
[1756453908574,13.59559401,209.78,209.75,0.03]
[1756453908882,0.44,209.81,209.75,0.03]
[1756453909065,0.44,209.84,209.75,23.93897311]
[1756453909385,19.14151045,209.82,209.75,24.65897311]
[1756453909677,19.14151045,209.81,209.75,24.65897311]
[1756453910381,19.14151045,209.81,209.75,5.51746266]
[1756453910966,0.44,209.84,209.76,19.14151045]
[1756453911171,19.14151045,209.83,209.77,19.14151045]
[1756453911374,19.14151045,209.81,209.78,39.54]
[1756453911880,19.14151045,209.82,209.75,0.75]
[1756453912085,19.14151045,209.8,209.76,39.54]
[1756453912456,19.14151045,209.8,209.75,4.79740717]
[1756453912662,19.14151045,209.78,209.75,0.03]
[1756453912883,19.14151045,209.77,209.76,39.54]
[1756453913098,19.58151045,209.77,209.76,39.54]
[1756453914075,33.17710446,209.8,209.76,39.54]
[1756453914791,19.14151045,209.79,209.76,39.54]
[1756453915085,13.59559401,209.83,209.77,39.54]
[1756453915385,13.59559401,209.86,209.77,59.40151045]
[1756453915594,19.14151045,209.83,209.78,4.76689865]
[1756453915889,19.14151045,209.83,209.78,5.48689865]
[1756453916596,13.65559401,209.88,209.81,19.14151045]
[1756453916779,19.14151045,209.87,209.81,19.14151045]
[1756453916982,19.14151045,209.87,209.81,19.86151045]
[1756453917180,19.14151045,209.87,209.82,39.54]
[1756453917392,19.14151045,209.87,209.83,39.54]
[1756453917700,19.20151045,209.88,209.84,44.30553564]
[1756453917874,19.20151045,209.88,209.85,39.54]
[1756453918074,19.20151045,209.88,209.86,39.54]
[1756453918273,32.73710446,209.87,209.86,39.54]
[1756453918887,33.17710446,209.87,209.76,0.72]
[1756453919079,14.03559401,209.87,209.78,45.14151045]
[1756453919283,19.14151045,209.83,209.78,26.0]
[1756453919487,13.59559401,209.85,209.79,19.14151045]
[1756453919686,13.59559401,209.85,209.79,24.62800746]
[1756453919889,13.59559401,209.84,209.79,24.62800746]
[1756453920798,19.14151045,209.83,209.78,4.76688924]
[1756453921001,19.14151045,209.84,209.79,39.54]
[1756453921184,32.73710446,209.85,209.79,59.36151045]
[1756453921396,13.59559401,209.84,209.79,59.36151045]
[1756453921703,19.14151045,209.86,209.8,23.90795468]
[1756453922608,13.65559401,209.88,209.8,4.76644423]
[1756453922609,13.59559401,209.84,209.8,4.76644423]
[1756453922786,13.59559401,209.8,209.75,0.03]
[1756453922979,13.59559401,209.8,209.78,39.52]
[1756453924110,13.59559401,209.8,209.78,44.28679195]
[1756453924301,13.59559401,209.84,209.78,44.96679195]
[1756453924814,13.59559401,209.86,209.78,44.96679195]
[1756453924984,19.14151045,209.83,209.78,44.96679195]
[1756453925385,19.14151045,209.83,209.78,44.99679195]
[1756453925679,0.06,209.84,209.79,0.68]
[1756453925892,13.65559401,209.84,209.79,0.68]
[1756453926782,13.65559401,209.84,209.8,4.76644423]
[1756453927488,0.06,209.84,209.81,19.82151045]
[1756453927691,0.06,209.84,209.82,40.2]
[1756453928605,0.06,209.84,209.82,59.34151045]
[1756453928806,0.06,209.84,209.83,4.76576276]
[1756453929205,0.06,209.84,209.83,5.44576276]
[1756453929588,0.06,209.84,209.82,39.52]
[1756453929907,0.06,209.84,209.83,0.68]
[1756453930104,0.06,209.84,209.83,19.82151045]
[1756453930886,0.06,209.84,209.83,24.58727321]
[1756453931093,0.06,209.84,209.83,5.44576276]
[1756453931306,0.06,209.84,209.83,24.58727321]
[1756453931784,0.06,209.84,209.78,0.03]
[1756453931990,0.06,209.84,209.79,64.10815057]
[1756453932309,0.06,209.84,209.8,19.82151045]
[1756453932508,0.06,209.84,209.83,26.0]
[1756453932700,0.06,209.84,209.81,40.22]
[1756453933006,13.65559401,209.84,209.81,39.54]
[1756453933988,32.79710446,209.84,209.81,39.54]
[1756453934309,32.73710446,209.82,209.81,39.54]
[1756453934701,32.73710446,209.82,209.78,4.79670319]
[1756453934902,19.14151045,209.79,209.78,0.03]
[1756453935105,32.73710446,209.79,209.78,0.03]
[1756453936614,13.59559401,209.79,209.78,0.03]
[1756453936812,33.17710446,209.79,209.78,0.03]
[1756453937014,37.94377589,209.79,209.78,0.03]
[1756453937212,13.59559401,209.79,209.78,0.03]
[1756453937702,32.73710446,209.79,209.78,0.03]
[1756453938489,33.17710446,209.79,209.78,0.03]
[1756453938693,37.94377589,209.79,209.78,0.03]
[1756453938904,63.94377589,209.79,209.78,0.03]
[1756453939112,26.0,209.76,209.75,0.03]
[1756453939415,58.73710446,209.76,209.75,0.03]
[1756453939814,59.14710446,209.76,209.75,0.03]
[1756453940004,58.73710446,209.76,209.75,0.03]
[1756453940206,63.50445762,209.76,209.75,0.03]
[1756453940698,63.91445762,209.76,209.75,0.03]
[1756453943217,33.14710446,209.76,209.75,0.03]
[1756453943415,63.91445762,209.76,209.75,0.03]
[1756453943625,63.91445762,209.76,209.72,0.03]
[1756453943626,13.59559401,209.74,209.72,0.03]
[1756453943793,72.27710446,209.74,209.72,0.03]
[1756453944121,72.65710446,209.74,209.72,0.03]
[1756453944827,33.11710446,209.74,209.72,0.03]
[1756453945123,77.42491222,209.74,209.72,0.03]
[1756453945291,37.88491222,209.74,209.72,0.03]
[1756453945491,77.42491222,209.74,209.72,0.03]
[1756453946293,13.59559401,209.73,209.72,0.03]
[1756453946496,32.73710446,209.73,209.72,0.03]
[1756453946722,33.11710446,209.73,209.72,0.03]
[1756453946923,72.65710446,209.73,209.72,0.03]
[1756453947622,77.42513955,209.73,209.72,0.03]
[1756453948202,37.50513955,209.73,209.72,0.03]
[1756453948411,58.73710446,209.73,209.72,0.03]
[1756453949409,63.50513955,209.73,209.72,0.03]
[1756453950521,77.42513955,209.73,209.72,0.03]
[1756453951107,4.76790937,209.74,209.72,0.03]
[1756453951333,4.00069046,209.77,209.72,0.75]
[1756453951334,32.73710446,209.73,209.72,0.75]
[1756453952011,32.73710446,209.73,209.72,0.03]
[1756453952910,32.73710446,209.73,209.72,0.75]
[1756453954217,13.59559401,209.73,209.72,0.75]
[1756453954416,32.73710446,209.73,209.72,0.75]
[1756453956313,13.59559401,209.73,209.72,0.75]
[1756453956926,13.59559401,209.76,209.72,5.51826244]
[1756453957135,14.33589,209.81,209.73,0.72]
[1756453957320,19.14151045,209.79,209.73,0.72]
[1756453957515,13.59559401,209.78,209.73,0.72]
[1756453957717,32.73710446,209.78,209.73,0.72]
[1756453957911,13.59559401,209.8,209.74,4.76780776]
[1756453958239,19.14151045,209.8,209.75,0.72]
[1756453958435,13.59559401,209.8,209.75,19.86151045]
[1756453958615,13.59559401,209.8,209.76,0.72]
[1756453958817,32.73710446,209.8,209.77,0.72]
[1756453959113,32.73710446,209.8,209.78,0.72]
[1756453959642,13.59559401,209.78,209.76,4.76729434]
[1756453959843,13.59559401,209.76,209.72,0.03]
[1756453960141,19.52151045,209.77,209.72,0.03]
[1756453960142,13.59559401,209.73,209.72,0.03]
[1756453960346,32.73710446,209.73,209.72,0.75]
[1756453960935,32.73710446,209.73,209.72,0.03]
[1756453963439,32.79710446,209.73,209.72,0.03]
[1756453965347,19.20151045,209.73,209.72,0.03]
[1756453966751,0.06,209.73,209.72,0.03]
[1756453967056,19.20151045,209.73,209.72,0.03]
[1756453967946,0.06,209.73,209.72,0.03]
[1756453968141,19.20151045,209.73,209.72,0.03]
[1756453969149,19.20151045,209.73,209.72,0.75]
[1756453969328,12.50009111,209.73,209.72,0.75]
[1756453970053,12.50009111,209.73,209.72,0.03]
[1756453970246,26.09568512,209.73,209.72,0.75]
[1756453970558,0.06,209.73,209.72,0.75]
[1756453971428,0.06,209.76,209.72,13.19009111]
[1756453971639,0.06,209.76,209.73,13.16009111]
[1756453971958,0.06,209.76,209.74,4.76780776]
[1756453972130,0.06,209.76,209.75,0.72]
[1756453973165,0.06,209.76,209.75,5.48758045]
[1756453975333,0.06,209.76,209.75,0.72]
[1756453975656,12.50009111,209.76,209.75,0.72]
[1756453976862,0.06,209.76,209.75,0.72]
[1756453979652,0.06,209.76,209.72,0.03]
[1756453979875,0.06,209.76,209.73,5.48803375]
[1756453980072,0.06,209.76,209.74,0.72]
[1756453980385,13.59559401,209.74,209.72,0.03]
[1756453980547,26.03568512,209.73,209.72,0.03]
[1756453980866,13.59559401,209.73,209.72,0.69]
[1756453981051,0.06,209.76,209.72,0.69]
[1756453981255,13.65559401,209.76,209.72,0.69]
[1756453981458,0.06,209.76,209.72,0.69]
[1756453982463,12.44009111,209.73,209.72,0.03]
[1756453982669,26.03568512,209.73,209.72,0.03]
[1756453982980,26.09568512,209.73,209.72,0.03]
[1756453985281,13.65559401,209.73,209.72,0.03]
[1756453985585,26.09568512,209.73,209.72,0.03]
[1756453988874,13.65559401,209.73,209.72,0.03]
[1756453989074,30.86372021,209.73,209.72,0.03]
[1756453989883,26.09568512,209.73,209.72,0.03]
[1756453990085,13.65559401,209.73,209.72,0.03]
[1756453990268,26.09568512,209.73,209.72,0.03]
[1756453991288,13.65559401,209.73,209.72,0.03]
[1756453991491,26.09568512,209.73,209.72,0.03]
[1756453994493,13.65559401,209.73,209.72,0.03]
[1756453994797,26.09568512,209.73,209.72,0.03]
[1756453997487,13.65559401,209.73,209.72,0.03]
[1756453997698,26.09568512,209.73,209.72,0.03]
[1756454003897,13.65559401,209.73,209.72,0.69]
[1756454004901,13.65559401,209.73,209.72,0.03]
[1756454009904,26.09568512,209.73,209.72,0.03]
[1756454013208,13.65559401,209.73,209.72,0.03]
[1756454013408,26.09568512,209.73,209.72,0.03]
[1756454015014,28.00759412,209.73,209.72,0.03]
[1756454015701,32.77562921,209.73,209.72,0.03]
[1756454018399,28.00759412,209.73,209.72,0.03]
[1756454018796,32.77562921,209.73,209.72,0.03]
[1756454020400,36.79328811,209.73,209.72,0.03]
[1756454021924,32.77562921,209.73,209.72,0.03]
[1756454023013,36.79328811,209.73,209.72,0.03]
[1756454023915,72.61562921,209.73,209.72,0.03]
[1756454024116,72.61562921,209.73,209.7,0.03]
[1756454024117,13.59559401,209.7,209.69,0.03]
[1756454024340,65.41568512,209.7,209.69,0.03]
[1756454024507,65.82568512,209.7,209.69,0.03]
[1756454025001,67.73841712,209.7,209.69,0.03]
[1756454025315,73.09966852,209.7,209.69,0.03]
[1756454025709,77.86838573,209.7,209.69,0.03]
[1756454027308,72.50713433,209.7,209.69,0.03]
[1756454028816,46.27704322,209.7,209.69,0.03]
[1756454029017,76.11360232,209.7,209.69,0.03]
[1756454029217,76.52360232,209.7,209.69,0.03]
[1756454029427,72.50713433,209.7,209.69,0.03]
[1756454033028,84.94722544,209.7,209.69,0.03]
[1756454033624,84.92722544,209.7,209.69,0.03]
[1756454033821,72.48713433,209.7,209.69,0.03]
[1756454034020,59.63704322,209.7,209.69,0.03]
[1756454034214,72.07713433,209.7,209.69,0.03]
[1756454034623,32.71713433,209.7,209.69,0.03]
[1756454034834,72.07713433,209.7,209.69,0.03]
[1756454035019,72.13713433,209.7,209.69,0.03]
[1756454037214,76.1466223,209.7,209.69,0.03]
[1756454040513,19.57781398,209.7,209.69,0.71]
[1756454040836,26.09568512,209.7,209.69,0.71]
[1756454041037,52.09568512,209.7,209.69,0.71]
[1756454042033,82.64449344,209.7,209.69,0.03]
[1756454042411,88.56614767,209.7,209.69,0.03]
[1756454042637,76.12605656,209.7,209.69,0.03]
[1756454042838,72.11713433,209.7,209.69,0.03]
[1756454043037,72.09713433,209.7,209.69,0.71]
[1756454043630,72.09713433,209.7,209.69,0.03]
[1756454044639,32.77713433,209.7,209.69,0.03]
[1756454044839,72.09713433,209.7,209.69,0.03]
[1756454047031,20.33704322,209.7,209.69,0.03]
[1756454047239,72.09713433,209.7,209.69,0.03]
[1756454047435,59.59559401,209.67,209.59,0.68]
[1756454047634,52.03568512,209.6,209.59,0.68]
[1756454047941,91.35568512,209.6,209.59,0.68]
[1756454048255,64.47577712,209.6,209.59,0.68]
[1756454048444,13.59559401,209.6,209.59,0.68]
[1756454048646,26.03568512,209.6,209.59,0.68]
[1756454049018,13.59559401,209.6,209.59,0.68]
[1756454049330,26.03568512,209.6,209.59,0.68]
[1756454049721,13.59559401,209.61,209.59,0.68]
[1756454049927,12.44009111,209.6,209.59,0.68]
[1756454050142,12.44009111,209.6,209.51,4.77304185]
[1756454050341,12.44009111,209.56,209.48,4.77372541]
[1756454050545,12.44009111,209.56,209.49,12.44009111]
[1756454050742,12.44009111,209.56,209.5,0.68]
[1756454051430,12.44009111,209.56,209.51,4.77304185]
[1756454051633,12.44009111,209.56,209.52,0.68]
[1756454053446,12.44009111,209.56,209.53,4.77258626]
[1756454053644,12.44009111,209.56,209.54,0.68]
[1756454054043,12.44009111,209.57,209.54,0.68]
[1756454054545,13.59559401,209.6,209.54,0.68]
[1756454054738,12.44009111,209.57,209.54,0.68]
[1756454055652,12.44009111,209.55,209.52,0.03]
[1756454056240,12.44009111,209.55,209.53,0.68]
[1756454056436,12.44009111,209.54,209.52,0.03]
[1756454056652,12.44009111,209.53,209.52,0.03]
[1756454056850,12.44009111,209.53,209.52,0.71]
[1756454058743,12.44009111,209.53,209.52,0.03]
[1756454059952,12.44009111,209.53,209.52,0.71]
[1756454060544,26.03568512,209.53,209.52,0.71]
[1756454060751,13.59559401,209.53,209.52,0.71]
[1756454060955,26.03568512,209.53,209.52,0.71]
[1756454061835,13.59559401,209.53,209.52,0.71]
[1756454062031,26.03568512,209.53,209.52,0.71]
[1756454062235,12.44009111,209.53,209.52,0.71]
[1756454062663,12.44009111,209.53,209.52,0.03]
[1756454062845,13.59559401,209.54,209.52,0.03]